bitfinex/quotes_ETHUSD_20241105
["timestamp","ask_amount","ask_price","bid_price","bid_amount"]
[1730795498696,6.20037347,2439.9,2439.8,0.33135022]
[1730795498841,8.34420614,2439.9,2439.8,0.33135022]
[1730795504968,7.05643267,2439.9,2439.8,0.33135022]
[1730795505310,6.24243267,2439.9,2439.8,0.33135022]
[1730795505473,5.81471771,2439.9,2439.8,0.86169444]
[1730795506183,4.0986,2439.9,2439.8,0.86169444]
[1730795506368,4.0986,2439.9,2439.8,0.33135022]
[1730795506554,6.24243267,2439.9,2439.8,0.33135022]
[1730795506754,7.06893267,2439.9,2439.8,0.33135022]
[1730795506955,7.07033559,2439.9,2439.8,0.33135022]
[1730795507560,7.07025559,2439.9,2439.8,0.33147894]
[1730795508077,4.09903,2439.6,2439.5,0.8198]
[1730795508278,4.09903,2439.6,2439.5,1.68165244]
[1730795509410,4.09903,2439.6,2439.5,2.34464904]
[1730795509753,4.09903,2439.6,2439.5,1.68165244]
[1730795510163,4.09903,2439.6,2439.5,2.34464845]
[1730795510594,4.09894,2439.7,2439.5,2.5791133]
[1730795510758,4.09894,2439.7,2439.6,0.86185244]
[1730795511359,4.09894,2439.7,2439.6,0.86187591]
[1730795512289,5.8149691,2439.8,2439.6,1.52488736]
[1730795512491,5.8149691,2439.8,2439.7,1.11979113]
[1730795514189,5.8149691,2439.8,2439.7,1.11986949]
[1730795514919,5.8149691,2439.8,2439.7,1.11983317]
[1730795515079,5.8149691,2439.8,2439.7,0.86191795]
[1730795515284,4.09877,2439.8,2439.7,0.86191795]
[1730795515590,5.81593508,2439.8,2439.7,0.86191795]
[1730795517909,7.05273624,2439.8,2439.7,0.86191795]
[1730795518918,4.09912,2439.6,2439.3,0.8024]
[1730795519131,8.19824,2439.6,2439.4,1.83291529]
[1730795519327,8.19824,2439.6,2439.5,1.52532492]
[1730795519791,4.09912,2439.6,2439.5,1.52532492]
[1730795523193,4.09912,2439.6,2439.5,0.86213396]
[1730795523415,7.10418137,2439.6,2439.5,0.86213396]
[1730795523815,7.89438137,2439.6,2439.5,0.86213396]
[1730795524019,6.607279,2439.6,2439.5,0.86213396]
[1730795524736,4.09936,2439.4,2439.2,0.17061582]
[1730795524896,4.09953,2439.3,2439.1,0.55270845]
[1730795525097,4.09953,2439.3,2439.2,2.00364363]
[1730795527556,2.508159,2439.6,2439.3,0.8011]
[1730795527557,5.817069,2439.6,2439.3,0.8011]
[1730795527716,4.09897,2439.7,2439.5,0.8011]
[1730795527914,4.09897,2439.7,2439.6,1.5254334]
[1730795528325,9.915499,2439.8,2439.6,1.5254334]
[1730795528541,5.816659,2439.8,2439.7,0.86219527]
[1730795529255,5.816489,2439.9,2439.8,0.8289]
[1730795529555,5.816489,2439.9,2439.8,1.69109527]
[1730795530153,4.09837,2440.0,2439.8,4.01601138]
[1730795530340,1.717959,2440.1,2439.9,1.52507594]
[1730795530546,4.09809,2440.2,2440.0,0.86219527]
[1730795530547,5.816049,2440.2,2440.0,0.86219527]
[1730795530856,5.816049,2440.2,2440.1,0.86219527]
[1730795531051,5.816049,2440.2,2440.1,1.69109527]
[1730795531260,4.09809,2440.2,2440.1,1.69109527]
[1730795531415,9.913589,2440.4,2440.1,1.69109527]
[1730795531615,9.913589,2440.4,2440.2,0.86219527]
[1730795531817,9.913589,2440.4,2440.3,0.33161112]
[1730795532015,9.913589,2440.4,2440.3,0.33124021]
[1730795532016,5.815749,2440.4,2440.3,0.33124021]
[1730795533320,4.09779,2440.4,2440.3,0.33124021]
[1730795535377,4.09779,2440.4,2440.3,0.3308502]
[1730795536837,4.09753,2440.5,2440.3,0.3308502]
[1730795537043,4.09753,2440.5,2440.1,0.8289]
[1730795537356,4.09777,2440.4,2440.2,0.54926697]
[1730795537568,4.09753,2440.5,2440.3,0.33067713]
[1730795537725,4.09753,2440.5,2440.2,0.21858984]
[1730795538059,4.09753,2440.5,2440.3,0.33060738]
[1730795538262,4.09753,2440.5,2440.2,0.21858984]
[1730795538437,8.19514,2440.5,2440.3,0.33054907]
[1730795538639,4.09753,2440.5,2440.2,0.21858984]
[1730795538839,0.53587156,2441.0,2440.4,2.1368984]
[1730795539057,0.53587156,2441.0,2440.7,1.3569984]
[1730795539058,4.09688,2440.9,2440.7,1.3569984]
[1730795539362,4.63258156,2441.0,2440.7,1.3569984]
[1730795539676,4.09671,2441.0,2440.7,1.3569984]
[1730795539837,4.09701,2440.8,2440.7,1.3569984]
[1730795540043,4.09713,2440.8,2440.6,0.7849]
[1730795540378,8.19424,2440.8,2440.6,0.7849]
[1730795540574,4.09711,2440.8,2440.6,0.7849]
[1730795540785,8.19423,2440.8,2440.6,0.7849]
[1730795541092,4.09718,2440.7,2440.6,0.7849]
[1730795541229,4.09718,2440.7,2440.3,0.7908]
[1730795541230,4.09754,2440.5,2440.3,0.7908]
[1730795541427,4.09754,2440.5,2440.4,0.33015922]
[1730795545296,4.09754,2440.5,2440.1,0.7939]
[1730795545297,0.7966,2440.5,2440.1,0.7939]
[1730795545454,4.09795,2440.3,2440.2,0.32998693]
[1730795545869,8.19593,2440.3,2440.2,0.32998693]
[1730795546498,4.09795,2440.3,2440.1,0.7939]
[1730795546705,4.09795,2440.3,2440.2,0.3299749]
[1730795549879,4.09795,2440.3,2440.2,0.33004123]
[1730795550197,4.09819,2440.1,2439.9,0.7893]
[1730795550505,4.09795,2440.3,2440.0,0.85811707]
[1730795550679,4.09795,2440.3,2440.1,0.33004278]
[1730795550998,4.09795,2440.3,2440.2,0.33004278]
[1730795553615,4.89423,2440.5,2440.3,0.8315]
[1730795553616,8.19529,2440.5,2440.3,0.8315]
[1730795553767,4.09763,2440.5,2440.4,0.33004278]
[1730795553974,4.09768,2440.4,2440.3,0.8315]
[1730795554173,4.09768,2440.4,2440.3,1.16172605]
[1730795555771,4.09768,2440.4,2440.3,0.33022605]
[1730795555971,4.09753,2440.5,2440.3,0.33022605]
[1730795556196,4.09753,2440.5,2440.4,0.33022605]
[1730795557694,4.09753,2440.5,2440.1,2.1389984]
[1730795558017,4.09753,2440.5,2440.2,1.07391922]
[1730795558223,4.09763,2440.5,2440.3,0.86001938]
[1730795558419,4.09736,2440.6,2440.4,0.33077531]
[1730795558635,4.09736,2440.6,2440.2,0.21389984]
[1730795558636,4.09752,2440.5,2440.2,0.21389984]
[1730795558923,4.09771,2440.4,2440.3,0.8604147]
[1730795559618,4.09752,2440.5,2440.3,1.18174599]
[1730795559825,4.09752,2440.5,2440.4,0.8604147]
[1730795564027,4.09752,2440.5,2440.4,1.52294295]
[1730795564243,4.09752,2440.5,2440.4,0.8604147]
[1730795564958,4.09752,2440.5,2440.3,0.32133129]
[1730795565104,4.09752,2440.5,2440.4,0.86129369]
[1730795567112,4.09752,2440.5,2440.4,1.52388345]
[1730795567510,4.09736,2440.6,2440.4,2.55413199]
[1730795567707,4.09736,2440.6,2440.5,0.86129369]
[1730795568835,4.09736,2440.6,2440.5,0.86141361]
[1730795570250,4.0971,2440.8,2440.6,0.832]
[1730795570409,4.0971,2440.8,2440.7,0.86141361]
[1730795570615,4.09676,2441.0,2440.7,0.86141361]
[1730795570953,4.09676,2441.0,2440.9,0.832]
[1730795571111,4.09676,2441.0,2440.9,1.69341361]
[1730795572318,4.09676,2441.0,2440.9,2.35550628]
[1730795572515,4.09676,2441.0,2440.9,1.69310603]
[1730795574617,4.09676,2441.0,2440.9,0.86110603]
[1730795574823,4.92406,2441.0,2440.9,0.86110603]
[1730795575358,4.92406,2441.0,2440.9,0.33119218]
[1730795575854,4.09676,2441.0,2440.9,0.33119218]
[1730795577953,4.09676,2441.0,2440.3,2.23033986]
[1730795577954,4.09746,2440.6,2440.3,0.7677]
[1730795578161,4.09753,2440.5,2440.4,1.52161311]
[1730795578326,4.09753,2440.5,2440.4,0.86003599]
[1730795582043,4.09774,2440.4,2440.1,0.7677]
[1730795582251,4.09774,2440.4,2440.2,1.52199978]
[1730795582453,4.09753,2440.5,2440.3,1.08922089]
[1730795582685,4.09753,2440.5,2440.4,0.86025091]
[1730795582843,4.09728,2440.7,2440.4,1.68175091]
[1730795583048,4.09728,2440.7,2440.5,0.86025091]
[1730795583243,4.09728,2440.7,2440.6,0.86025091]
[1730795583741,1.71569273,2441.0,2440.7,0.8215]
[1730795583972,4.09661,2441.1,2440.8,0.8601731]
[1730795584304,4.09661,2441.1,2440.9,0.8601731]
[1730795584305,4.09669,2441.0,2440.9,0.8601731]
[1730795584583,0.53581012,2441.2,2440.9,0.8601731]
[1730795584584,4.63224012,2441.2,2440.9,0.8601731]
[1730795584797,4.63224012,2441.2,2441.0,1.6214731]
[1730795585079,0.53581012,2441.2,2441.1,0.33085816]
[1730795585286,4.63215012,2441.2,2441.1,0.33085816]
[1730795585459,4.09625,2441.3,2441.1,1.10479401]
[1730795585663,4.09625,2441.3,2441.1,0.24491566]
[1730795585860,4.09625,2441.3,2441.2,0.3306429]
[1730795586058,4.09625,2441.3,2441.1,0.24491566]
[1730795586259,4.09603,2441.4,2441.2,0.33064735]
[1730795586477,4.09603,2441.4,2441.1,0.24491566]
[1730795586649,4.09603,2441.4,2441.2,0.33053878]
[1730795586852,4.09603,2441.4,2441.3,0.33053878]
[1730795587950,4.09585,2441.5,2441.3,0.33053878]
[1730795588191,4.09585,2441.5,2441.4,0.33053878]
[1730795588395,4.09601,2441.4,2441.3,0.8202]
[1730795588581,4.09585,2441.5,2441.3,1.15057967]
[1730795588762,4.09585,2441.5,2441.4,0.33037967]
[1730795589294,4.09585,2441.5,2441.4,0.33030574]
[1730795589505,4.09585,2441.5,2441.3,1.09544937]
[1730795589506,4.09601,2441.4,2441.3,1.09544937]
[1730795589797,4.09585,2441.5,2441.3,1.42575544]
[1730795589955,8.19182,2441.5,2441.4,0.33030607]
[1730795590397,8.19182,2441.5,2441.3,1.09544937]
[1730795590398,4.09601,2441.4,2441.3,1.09544937]
[1730795590572,4.09601,2441.4,2441.3,1.4256958]
[1730795591094,8.19184,2441.5,2441.3,1.4256958]
[1730795591290,8.19184,2441.5,2441.3,1.09544937]
[1730795592892,8.19179,2441.5,2441.3,1.09544937]
[1730795593402,4.09601,2441.4,2441.3,1.09544937]
[1730795593560,4.09601,2441.4,2441.3,1.15035197]
[1730795593974,4.09601,2441.4,2441.3,0.33015197]
[1730795597275,4.09601,2441.4,2441.1,1.06511566]
[1730795597593,4.09617,2441.3,2441.2,0.33020026]
[1730795598601,4.09617,2441.3,2440.6,4.65765689]
[1730795598602,4.09651,2441.1,2441.0,0.52844547]
[1730795598804,4.09714,2440.8,2440.7,0.66057675]
[1730795598957,4.09718,2440.7,2440.5,0.66061779]
[1730795599159,4.09718,2440.7,2440.6,0.85881519]
[1730795600698,4.09718,2440.7,2440.4,0.7564]
[1730795600699,4.09752,2440.5,2440.4,0.7564]
[1730795600859,4.09752,2440.5,2440.4,1.82681961]
[1730795601063,4.09752,2440.5,2440.4,2.48764037]
[1730795601256,4.09752,2440.5,2440.4,1.82681961]
[1730795601659,4.09752,2440.5,2440.4,2.48764037]
[1730795601865,4.09752,2440.5,2440.4,1.82681961]
[1730795602266,4.09752,2440.5,2440.4,2.48764037]
[1730795602463,4.09752,2440.5,2440.4,1.82681961]
[1730795602868,4.09752,2440.5,2440.4,2.48764037]
[1730795603082,4.09752,2440.5,2440.4,1.61547977]
[1730795603513,4.09752,2440.5,2440.4,2.27630053]
[1730795603716,4.09752,2440.5,2440.4,1.61547977]
[1730795603897,4.09752,2440.5,2440.4,0.85907977]
[1730795604218,4.09752,2440.5,2440.1,1.32307384]
[1730795604219,4.09752,2440.5,2440.1,0.7724]
[1730795604418,4.09752,2440.5,2440.2,1.01560674]
[1730795604577,4.09752,2440.5,2440.3,1.51953262]
[1730795604776,4.09752,2440.5,2440.4,0.85886012]
[1730795605224,8.19479,2440.6,2440.4,0.85886012]
[1730795605581,4.09735,2440.6,2440.5,0.85886012]
[1730795606510,4.09735,2440.6,2440.2,0.487075]
[1730795606727,4.09735,2440.6,2440.3,0.5357665]
[1730795607893,4.09735,2440.6,2440.4,0.85872295]
[1730795608126,4.09735,2440.6,2440.5,0.33027562]
[1730795608341,4.09735,2440.6,2440.5,0.85874618]
[1730795610558,4.09735,2440.6,2440.5,0.85881395]
[1730795612245,4.09735,2440.6,2440.5,0.8589005]
[1730795615847,4.09665,2441.1,2440.7,0.7603]
[1730795616148,4.09622,2441.3,2440.8,4.95594952]
[1730795616347,4.09622,2441.3,2440.9,5.71607952]
[1730795616650,4.09622,2441.3,2441.0,1.43056747]
[1730795616945,4.0961,2441.4,2441.1,0.85891537]
[1730795617147,4.0961,2441.4,2441.2,0.33036661]
[1730795617440,4.09601,2441.4,2441.3,0.33036661]
[1730795619541,4.09601,2441.4,2440.9,0.7603]
[1730795619842,4.09601,2441.4,2441.0,1.4767718]
[1730795620046,4.09601,2441.4,2441.1,0.85890243]
[1730795620345,4.09601,2441.4,2441.2,0.33034465]
[1730795620548,4.09601,2441.4,2441.3,0.33034465]
[1730795622668,0.774,2441.6,2441.4,0.8106]
[1730795622669,4.09569,2441.6,2441.4,0.8106]
[1730795622823,4.09569,2441.6,2441.5,0.33034465]
[1730795623222,4.09569,2441.6,2441.4,0.8106]
[1730795623425,4.09569,2441.6,2441.5,0.33036962]
[1730795626972,4.09552,2441.7,2441.4,0.8106]
[1730795627123,0.53569602,2441.8,2441.5,2.43004979]
[1730795627319,0.53569602,2441.8,2441.7,0.8109]
[1730795627522,0.53569602,2441.8,2441.7,1.14110186]
[1730795629554,0.53569602,2441.8,2441.7,1.66887269]
[1730795630348,4.09479,2442.2,2441.7,5.77427269]
[1730795630649,4.09486,2442.1,2441.8,1.31719313]
[1730795630852,4.09486,2442.1,2441.9,0.33020186]
[1730795631076,4.09486,2442.1,2441.8,0.98699127]
[1730795631391,4.09486,2442.1,2441.9,0.32972115]
[1730795631591,4.09486,2442.1,2441.7,1.34830262]
[1730795631899,4.09486,2442.1,2441.8,0.32962012]
[1730795632086,4.09486,2442.1,2441.9,0.32962012]
[1730795632256,4.09486,2442.1,2441.7,1.34815585]
[1730795632461,4.09486,2442.1,2441.8,0.87391055]
[1730795632642,4.09486,2442.1,2441.8,0.54437959]
[1730795632979,4.09486,2442.1,2441.9,0.32953018]
[1730795633183,4.09486,2442.1,2441.8,0.54437959]
[1730795633571,4.1554553,2442.4,2441.8,0.54437959]
[1730795633770,4.09529,2441.9,2441.7,0.8109]
[1730795633976,4.09533,2441.8,2441.7,0.8109]
[1730795634147,4.09533,2441.8,2441.7,1.1403747]
[1730795634716,4.09526,2441.9,2441.7,0.8109]
[1730795634989,4.09533,2441.8,2441.7,1.14035342]
[1730795635206,4.09533,2441.8,2441.7,0.65890825]
[1730795635340,4.09533,2441.8,2441.7,0.32945342]
[1730795638597,4.91976,2441.9,2441.7,0.32945342]
[1730795638598,4.09526,2441.9,2441.7,0.32945342]
[1730795639019,4.09533,2441.8,2441.7,0.32945342]
[1730795640811,4.09555,2441.7,2441.4,0.754]
[1730795641051,4.09567,2441.6,2441.5,0.81479574]
[1730795641213,4.09551,2441.7,2441.5,0.32977974]
[1730795641548,4.09551,2441.7,2441.6,0.32977974]
[1730795641862,4.09551,2441.7,2441.6,0.32988023]
[1730795644951,4.09551,2441.7,2441.3,0.52846652]
[1730795645123,4.09676,2441.0,2440.8,0.8129]
[1730795645349,4.09684,2440.9,2440.8,0.8129]
[1730795645644,0.7732,2441.2,2440.8,2.33314021]
[1730795645818,4.09684,2440.9,2440.8,0.8129]
[1730795646017,4.09684,2440.9,2440.8,1.52033905]
[1730795646973,4.09669,2441.0,2440.8,1.52033905]
[1730795647119,4.09669,2441.0,2440.9,0.85931587]
[1730795648921,4.09669,2441.0,2440.9,0.33050366]
[1730795649158,4.09713,2440.8,2440.6,0.7896]
[1730795649364,4.09713,2440.8,2440.7,0.85901197]
[1730795649962,4.09713,2440.8,2440.7,1.51977329]
[1730795650122,4.09713,2440.8,2440.7,0.85901197]
[1730795652942,4.09713,2440.8,2440.6,0.7896]
[1730795653142,4.09713,2440.8,2440.7,0.85854308]
[1730795653748,4.09685,2440.9,2440.7,0.85854308]
[1730795653946,4.09676,2441.0,2440.8,0.85854308]
[1730795654142,4.09676,2441.0,2440.9,0.33020644]
[1730795656750,4.09696,2440.9,2440.6,0.7896]
[1730795656980,4.09696,2440.9,2440.7,0.85800141]
[1730795657180,4.09696,2440.9,2440.8,0.32999823]
[1730795659457,4.09696,2440.9,2440.8,0.85792503]
[1730795659871,4.09654,2441.1,2440.8,0.85792503]
[1730795660067,4.09654,2441.1,2440.9,1.12019823]
[1730795660266,4.09643,2441.2,2441.0,0.32999823]
[1730795660465,4.09643,2441.2,2440.9,1.45567134]
[1730795660796,4.09651,2441.1,2441.0,0.3299745]
[1730795661866,0.8132,2441.4,2441.0,0.3299745]
[1730795661867,4.09612,2441.4,2441.0,0.3299745]
[1730795662084,4.09612,2441.4,2441.1,0.8580056]
[1730795662298,4.09617,2441.3,2441.2,0.3299745]
[1730795664305,4.09617,2441.3,2440.9,0.7902]
[1730795664520,4.09617,2441.3,2441.2,0.3303365]
[1730795665415,4.09617,2441.3,2441.2,0.85902183]
[1730795668572,4.09596,2441.5,2441.2,0.85902183]
[1730795668772,4.09581,2441.6,2441.3,0.85915472]
[1730795669007,4.09581,2441.6,2441.2,0.7661]
[1730795669008,4.09559,2441.7,2441.4,0.85914326]
[1730795669193,4.09559,2441.7,2441.5,0.3303365]
[1730795669377,4.09559,2441.7,2441.6,0.3303365]
[1730795670488,4.09559,2441.7,2441.2,4.86232]
[1730795670692,4.0955,2441.7,2441.6,0.33055388]
[1730795672534,4.8624,2441.7,2441.6,0.33055388]
[1730795672674,4.09617,2441.3,2441.2,0.7661]
[1730795672869,4.09617,2441.3,2441.2,2.28728701]
[1730795673175,4.09617,2441.3,2441.2,1.52118701]
[1730795673413,4.09617,2441.3,2441.2,1.52131225]
[1730795673634,4.09567,2441.6,2441.0,0.764]
[1730795673921,4.09634,2441.2,2441.1,0.85997823]
[1730795676833,4.09634,2441.2,2441.1,0.33075842]
[1730795677230,4.0971,2440.8,2440.6,0.55150062]
[1730795677433,4.09718,2440.7,2440.5,0.55150062]
[1730795677656,4.09718,2440.7,2440.6,1.52217603]
[1730795678243,4.09718,2440.7,2440.6,1.52205559]
[1730795678775,8.94907,2440.8,2440.6,1.52205559]
[1730795678943,8.94907,2440.8,2440.4,1.35588455]
[1730795678944,8.94907,2440.8,2440.7,1.52205559]
[1730795679146,4.0971,2440.8,2440.7,1.52205559]
[1730795680088,8.19379,2440.9,2440.7,1.52205559]
[1730795680232,8.19379,2440.9,2440.8,0.86028608]
[1730795680970,4.09704,2440.8,2440.4,1.35585208]
[1730795681278,4.09704,2440.8,2440.5,2.1150078]
[1730795681459,4.09686,2440.9,2440.6,1.52197461]
[1730795681774,4.09686,2440.9,2440.7,1.52197461]
[1730795681931,4.09686,2440.9,2440.8,0.86024031]
[1730795691598,4.0967,2441.0,2440.8,1.61994031]
[1730795691897,4.0967,2441.0,2440.9,0.85978975]
[1730795695379,4.09651,2441.1,2440.6,1.06666689]
[1730795695588,4.09651,2441.1,2440.7,1.52141209]
[1730795695910,4.09686,2440.9,2440.8,0.85992358]
[1730795696091,4.85946,2440.9,2440.8,0.85992358]
[1730795698314,4.09686,2440.9,2440.8,0.85992358]
[1730795699257,4.09712,2440.8,2440.4,1.37546307]
[1730795699458,4.09712,2440.8,2440.5,2.40356751]
[1730795699681,4.09712,2440.8,2440.6,1.52204755]
[1730795699913,4.09712,2440.8,2440.7,1.52204755]
[1730795701831,4.09712,2440.8,2440.5,0.57456246]
[1730795702040,4.09712,2440.8,2440.6,1.52259485]
[1730795702210,4.09712,2440.8,2440.7,1.52259485]
[1730795705633,4.09686,2440.9,2440.7,1.52440428]
[1730795705925,4.09686,2440.9,2440.8,1.52440428]
[1730795706934,4.84879,2441.3,2440.8,1.73207826]
[1730795707151,4.0965,2441.2,2440.9,1.52440428]
[1730795707428,4.0965,2441.2,2440.8,0.76000953]
[1730795707429,4.09651,2441.1,2441.0,1.52440428]
[1730795709036,4.09612,2441.4,2441.0,3.88292586]
[1730795709239,4.09612,2441.4,2441.1,1.52440428]
[1730795709390,4.09612,2441.4,2441.2,1.52380985]
[1730795709585,4.09612,2441.4,2441.3,1.52380985]
[1730795710305,4.09612,2441.4,2441.3,0.86127762]
[1730795713196,4.09612,2441.4,2441.3,0.86061101]
[1730795714428,4.09584,2441.5,2441.3,1.52242054]
[1730795714635,8.19179,2441.5,2441.4,0.86061101]
[1730795715015,4.09584,2441.5,2441.4,0.86061101]
[1730795716943,4.09584,2441.5,2441.4,0.86009773]
[1730795717960,4.6313946,2441.6,2441.4,0.86009773]
[1730795718162,4.6313946,2441.6,2441.5,0.33080438]
[1730795720655,4.6313946,2441.6,2441.3,0.8329]
[1730795720963,4.09584,2441.5,2441.4,0.85973855]
[1730795721531,4.09584,2441.5,2441.4,0.33066616]
[1730795722032,4.92644,2441.5,2441.4,0.33066616]
[1730795722251,5.79916346,2441.5,2441.4,0.33066616]
[1730795723003,4.09651,2441.1,2441.0,0.7918]
[1730795723293,4.09651,2441.1,2441.0,1.52123754]
[1730795723444,4.09651,2441.1,2441.0,0.85982371]
[1730795723786,4.915796,2441.1,2441.0,0.33069899]
[1730795724142,4.915796,2441.1,2440.5,0.7512]
[1730795724143,4.09692,2440.9,2440.5,0.7512]
[1730795724342,4.09718,2440.7,2440.6,1.52144856]
[1730795724739,4.09718,2440.7,2440.5,0.7512]
[1730795724978,4.09718,2440.7,2440.6,1.52146393]
[1730795726443,4.09718,2440.7,2440.6,0.85995167]
[1730795727739,0.7765,2441.1,2440.7,0.7512]
[1730795727957,4.0968,2441.0,2440.8,0.85995167]
[1730795728263,4.097,2440.9,2440.7,0.7512]
[1730795728462,4.09701,2440.8,2440.7,0.7512]
[1730795728769,4.09701,2440.8,2440.7,0.8593696]
[1730795732018,4.09701,2440.8,2440.5,0.779]
[1730795732228,4.09701,2440.8,2440.7,1.04444741]
[1730795736198,4.09701,2440.8,2440.7,1.0442564]
[1730795736611,4.09701,2440.8,2440.7,1.04413827]
[1730795739032,8.19386,2440.9,2440.7,1.04413827]
[1730795739201,8.19386,2440.9,2440.8,0.33035618]
[1730795739715,8.19386,2440.9,2440.8,0.51365637]
[1730795739913,4.09686,2440.9,2440.8,0.51365637]
[1730795740117,4.09686,2440.9,2440.8,1.04197949]
[1730795740635,4.09686,2440.9,2440.8,0.51365637]
[1730795744909,8.768664,2440.9,2440.8,0.18330019]
[1730795745127,8.768664,2440.9,2440.4,0.52851288]
[1730795745128,4.09752,2440.5,2440.4,0.52851288]
[1730795745331,4.09752,2440.5,2440.4,0.85884426]
[1730795745948,4.09752,2440.5,2440.4,0.33033138]
[1730795745949,4.88162,2440.5,2440.4,0.33033138]
[1730795746136,5.70111,2440.5,2440.4,0.33033138]
[1730795748025,5.70111,2440.5,2440.4,0.33035669]
[1730795752416,4.09777,2440.4,2440.0,2.43630726]
[1730795752726,4.09777,2440.4,2440.2,0.7614]
[1730795752727,4.09785,2440.3,2440.2,0.7614]
[1730795753056,4.09777,2440.4,2440.2,2.09295403]
[1730795753259,8.19556,2440.4,2440.3,0.85968423]
[1730795755231,4.09777,2440.4,2440.2,1.2332698]
[1730795755564,4.09777,2440.4,2440.3,0.86002083]
[1730795757623,4.92027,2440.4,2440.3,0.86002083]
[1730795757828,7.31330022,2440.4,2440.3,0.86002083]
[1730795758131,7.31330022,2440.4,2440.3,0.3307748]
[1730795759068,7.31330022,2440.4,2440.0,2.43630726]
[1730795759377,4.09819,2440.1,2440.0,2.43630726]
[1730795759523,4.09819,2440.1,2440.0,3.95767561]
[1730795760558,4.09819,2440.1,2440.0,4.1072514]
[1730795761758,4.09819,2440.1,2440.0,4.10709572]
[1730795761959,4.09819,2440.1,2440.0,3.44569269]
[1730795762455,4.09819,2440.1,2440.0,4.10703664]
[1730795763025,8.1962,2440.2,2440.1,0.8156]
[1730795763364,4.09805,2440.2,2440.1,1.67540964]
[1730795763928,4.09805,2440.2,2440.1,1.825655]
[1730795764770,4.09805,2440.2,2440.1,2.48699528]
[1730795764925,4.09805,2440.2,2440.1,1.825655]
[1730795765123,4.09787,2440.3,2440.1,2.91319726]
[1730795765427,4.09787,2440.3,2440.2,0.85980964]
[1730795765769,4.09787,2440.3,2440.2,0.85981831]
[1730795766061,4.09787,2440.3,2440.2,1.0099811]
[1730795768293,4.0977,2440.4,2440.2,1.67161179]
[1730795768471,4.0977,2440.4,2440.3,0.85981831]
[1730795768843,4.0977,2440.4,2440.3,1.0099811]
[1730795769788,4.0977,2440.4,2440.3,0.15016279]
[1730795769989,4.0977,2440.4,2440.3,0.86026463]
[1730795770187,4.0977,2440.4,2440.3,1.01042742]
[1730795771040,4.0977,2440.4,2440.3,1.6723542]
[1730795771295,4.09763,2440.5,2440.3,1.96376924]
[1730795771449,4.09737,2440.6,2440.4,2.28799141]
[1730795771651,4.09737,2440.6,2440.5,1.52228536]
[1730795771858,4.09737,2440.6,2440.5,1.0104641]
[1730795772088,4.09737,2440.6,2440.5,1.67247859]
[1730795772391,4.09737,2440.6,2440.5,1.94544795]
[1730795773457,4.09737,2440.6,2440.5,1.67247859]
[1730795773725,4.09737,2440.6,2440.5,1.67321077]
[1730795774008,4.09737,2440.6,2440.5,0.15019947]
[1730795774167,4.09737,2440.6,2440.5,1.67317391]
[1730795775579,6.2315502,2440.6,2440.5,1.01100489]
[1730795775785,7.0510062,2440.6,2440.5,0.86080542]
[1730795776093,7.0510062,2440.6,2440.5,0.33107656]
[1730795776606,11.7670334,2440.6,2439.9,0.8126]
[1730795776755,4.09853,2439.9,2439.7,0.7825]
[1730795776956,4.09853,2439.9,2439.8,2.38245788]
[1730795777198,4.09853,2439.9,2439.8,2.21826177]
[1730795777708,4.09853,2439.9,2439.8,1.6661547]
[1730795778824,8.74192,2439.9,2439.8,1.52340653]
[1730795779093,7.92223,2439.9,2439.8,0.86104964]
[1730795780711,7.92223,2439.9,2439.8,0.33117049]
[1730795784010,4.09953,2439.3,2439.0,2.64864811]
[1730795784172,4.09953,2439.3,2439.1,1.52127407]
[1730795784363,4.09953,2439.3,2439.2,1.52127407]
[1730795785194,4.09953,2439.3,2439.2,1.52077035]
[1730795785516,4.09987,2439.1,2439.0,2.09667405]
[1730795785667,4.09987,2439.1,2439.0,3.6170854]
[1730795786325,4.09987,2439.1,2439.0,2.95603078]
[1730795787575,4.09987,2439.1,2439.0,2.42719343]
[1730795790195,4.89397,2439.1,2439.0,2.42719343]
[1730795790413,4.693469,2439.1,2438.5,0.77760092]
[1730795790606,4.10054,2438.7,2438.6,0.3299158]
[1730795791083,4.1004,2438.8,2438.6,0.3299158]
[1730795791277,4.1004,2438.8,2438.7,1.1075158]
[1730795792320,4.1004,2438.8,2438.7,0.7776]
[1730795792618,4.1004,2438.8,2438.5,0.75420092]
[1730795792619,4.10065,2438.7,2438.5,0.75420092]
[1730795793125,4.10071,2438.6,2438.5,0.75420092]
[1730795793284,4.10071,2438.6,2438.5,1.08368364]
[1730795795013,4.10065,2438.7,2438.5,1.08368364]
[1730795795333,4.10065,2438.7,2438.6,0.32948272]
[1730795795499,4.10029,2438.9,2438.6,0.32948272]
[1730795795701,4.10049,2438.8,2438.7,0.32948272]
[1730795796124,4.10049,2438.8,2438.5,0.75420092]
[1730795796430,4.10049,2438.8,2438.6,0.32928665]
[1730795796630,4.10054,2438.7,2438.5,0.75420092]
[1730795796928,4.10054,2438.7,2438.6,0.32925799]
[1730795797281,4.10049,2438.8,2438.6,0.32925799]
[1730795797486,4.10049,2438.8,2438.5,0.75420092]
[1730795797708,4.10049,2438.8,2438.6,0.32923346]
[1730795797894,8.20099,2438.8,2438.5,0.75420092]
[1730795798101,4.10054,2438.7,2438.6,0.32923914]
[1730795799422,4.10049,2438.8,2438.6,0.32923914]
[1730795799638,4.10049,2438.8,2438.5,9.2e-07]
[1730795799786,4.10049,2438.8,2438.6,1.12222448]
[1730795799987,4.10049,2438.8,2438.6,0.793]
[1730795800218,4.10049,2438.8,2438.7,0.32922103]
[1730795802815,4.10023,2438.9,2438.7,0.32922103]
[1730795803145,4.09998,2439.1,2438.9,0.8225]
[1730795803438,4.09998,2439.1,2439.0,0.32922103]
[1730795803806,4.09998,2439.1,2438.9,0.8225]
[1730795804004,4.09998,2439.1,2439.0,0.32954142]
[1730795804200,4.09998,2439.1,2439.0,0.85714409]
[1730795804400,4.09998,2439.1,2439.0,0.32954142]
[1730795804629,4.0997,2439.2,2439.0,0.32954142]
[1730795804854,8.1995,2439.2,2439.1,0.32954142]
[1730795805521,8.1995,2439.2,2439.1,0.46545999]
[1730795805854,8.1995,2439.2,2439.1,0.32954142]
[1730795806151,8.1995,2439.2,2439.1,0.46533142]